bitfinex/quotes_BTCUSD_20250607
["timestamp","ask_amount","ask_price","bid_price","bid_amount"]
[1749296248125,2.09209369,105380.0,105370.0,0.32416682]
[1749296251589,2.10158306,105380.0,105370.0,0.32416682]
[1749296254454,2.10158378,105380.0,105370.0,0.31467718]
[1749296254926,2.29137311,105380.0,105370.0,0.30518727]
[1749296255119,2.2818841,105380.0,105370.0,0.30518727]
[1749296255331,2.2818841,105380.0,105370.0,0.39462727]
[1749296255714,2.27239491,105380.0,105370.0,0.39462727]
[1749296255924,1.71783858,105380.0,105370.0,0.39462727]
[1749296256124,2.80797268,105380.0,105370.0,0.39462727]
[1749296256261,2.82575492,105380.0,105370.0,0.39462727]
[1749296256468,2.80797268,105380.0,105370.0,0.39462727]
[1749296257861,2.79848331,105380.0,105370.0,0.38513718]
[1749296258066,2.79848331,105380.0,105370.0,0.39462745]
[1749296258902,2.79848331,105380.0,105370.0,0.40411763]
[1749296259119,2.79848331,105380.0,105370.0,0.41360754]
[1749296259542,2.79848331,105380.0,105370.0,0.40411763]
[1749296260153,2.79848331,105380.0,105370.0,0.65031763]
[1749296261004,2.79848331,105380.0,105370.0,0.65980772]
[1749296261532,2.79848331,105380.0,105370.0,0.65031763]
[1749296264131,2.79848331,105380.0,105370.0,0.65980772]
[1749296269048,2.79848331,105380.0,105370.0,0.65031763]
[1749296269280,2.79848331,105380.0,105370.0,0.64082745]
[1749296270507,1.70834921,105380.0,105370.0,0.65031763]
[1749296270723,2.79848331,105380.0,105370.0,0.65031763]
[1749296271971,2.79848331,105380.0,105370.0,0.43203948]
[1749296272180,2.78899385,105380.0,105370.0,0.43203948]
[1749296272475,2.78899385,105380.0,105370.0,0.63133718]
[1749296272917,2.80679467,105380.0,105370.0,0.63133718]
[1749296273330,2.78899385,105380.0,105370.0,0.63133718]
[1749296273536,2.80679467,105380.0,105370.0,0.63133718]
[1749296273691,2.80679467,105380.0,105370.0,0.64082736]
[1749296273855,2.78899385,105380.0,105370.0,0.64082736]
[1749296274062,2.80679467,105380.0,105370.0,0.64082736]
[1749296274346,2.78899385,105380.0,105370.0,0.44152984]
[1749296274476,2.80679467,105380.0,105370.0,0.44152984]
[1749296274673,2.82259467,105380.0,105370.0,0.44152984]
[1749296274930,2.80479385,105380.0,105370.0,0.73148984]
[1749296275136,2.82259467,105380.0,105370.0,0.73148984]
[1749296275339,2.80479385,105380.0,105370.0,0.73148984]
[1749296275543,2.82259467,105380.0,105370.0,0.73148984]
[1749296275953,2.80479385,105380.0,105370.0,0.34259948]
[1749296276186,2.82259467,105380.0,105370.0,0.72171948]
[1749296276390,2.82259531,105380.0,105370.0,0.72171948]
[1749296276588,2.80479385,105380.0,105370.0,0.72171948]
[1749296278444,2.80479385,105380.0,105370.0,0.72171948]
[1749296278646,2.82259549,105380.0,105370.0,0.72171948]
[1749296279159,2.80479385,105380.0,105370.0,0.72171948]
[1749296280173,2.8225955,105380.0,105370.0,0.72171948]
[1749296280371,2.82258458,105380.0,105370.0,0.72171948]
[1749296280771,2.82258459,105380.0,105370.0,0.72171948]
[1749296280986,2.80479385,105380.0,105370.0,0.72171948]
[1749296281205,2.82258459,105380.0,105370.0,0.72171948]
[1749296281585,2.80479385,105380.0,105370.0,0.72171948]
[1749296281801,2.82258459,105380.0,105370.0,0.72171948]
[1749296281978,2.80479385,105380.0,105370.0,0.72171948]
[1749296282174,2.82258459,105380.0,105370.0,0.72171948]
[1749296282396,2.80479385,105380.0,105370.0,0.72171948]
[1749296282806,2.80479385,105380.0,105370.0,0.47551948]
[1749296283288,2.82258482,105380.0,105370.0,0.47551948]
[1749296283494,2.80479385,105380.0,105370.0,0.47551948]
[1749296283706,2.82258482,105380.0,105370.0,0.47551948]
[1749296283926,2.80479385,105380.0,105370.0,0.47551948]
[1749296284102,2.82258482,105380.0,105370.0,0.47551948]
[1749296284705,2.80479385,105380.0,105370.0,0.47551948]
[1749296285854,2.82258452,105380.0,105370.0,0.47551948]
[1749296286072,2.80479385,105380.0,105370.0,0.47551948]
[1749296286292,2.82258473,105380.0,105370.0,0.47551948]
[1749296286498,2.80479385,105380.0,105370.0,0.47551948]
[1749296287113,2.82258473,105380.0,105370.0,0.47551948]
[1749296287780,2.80479385,105380.0,105370.0,0.72171948]
[1749296287993,2.80479385,105380.0,105370.0,0.71932458]
[1749296288675,2.80479385,105380.0,105370.0,0.72881494]
[1749296288858,2.82258473,105380.0,105370.0,0.72881494]
[1749296289090,2.80479385,105380.0,105370.0,0.72881494]
[1749296289303,2.82258473,105380.0,105370.0,0.72881494]
[1749296289510,2.80479385,105380.0,105370.0,0.72881494]
[1749296290194,1.73245063,105380.0,105370.0,0.72881494]
[1749296290405,2.61818263,105380.0,105370.0,0.96209228]
[1749296290632,2.63716056,105380.0,105370.0,0.94709228]
[1749296290862,2.64664993,105380.0,105370.0,0.94709228]
[1749296291072,2.64665056,105380.0,105370.0,0.94709228]
[1749296291280,2.64665056,105380.0,105370.0,0.94709246]
[1749296291498,2.81746196,105380.0,105370.0,0.92811255]
[1749296291703,2.82387268,105380.0,105370.0,0.92811255]
[1749296291896,2.84166285,105380.0,105370.0,0.93760273]
[1749296292034,2.82387268,105380.0,105370.0,0.94709282]
[1749296292240,2.82387268,105380.0,105370.0,0.92811255]
[1749296292443,2.83217341,105380.0,105370.0,0.92811255]
[1749296292840,2.83217342,105380.0,105370.0,0.92811255]
[1749296293074,2.83217414,105380.0,105370.0,0.91774228]
[1749296293308,2.81438331,105380.0,105370.0,0.42880458]
[1749296293511,2.83217426,105380.0,105370.0,0.71844458]
[1749296293962,2.83217442,105380.0,105370.0,0.71844458]
[1749296294394,2.83217442,105380.0,105370.0,0.72793494]
[1749296294579,2.81438331,105380.0,105370.0,0.72793494]
[1749296294717,2.83217442,105380.0,105370.0,0.72793494]
[1749296295160,2.81438331,105380.0,105370.0,0.72793494]
[1749296295497,2.81438331,105380.0,105370.0,0.71844458]
[1749296295700,2.8321919,105380.0,105370.0,0.34020458]
[1749296295924,2.8321919,105380.0,105370.0,0.42880458]
[1749296296144,2.83887024,105380.0,105370.0,0.71844458]
[1749296296361,2.83887026,105380.0,105370.0,0.71844458]
[1749296296583,2.3405704,105380.0,105370.0,0.71844458]
[1749296296799,2.34057039,105380.0,105370.0,0.71844458]
[1749296297506,2.3227616,105380.0,105370.0,0.71844458]
[1749296297757,2.31608331,105380.0,105370.0,0.71844458]
[1749296297971,2.3227616,105380.0,105370.0,0.71844458]
[1749296298183,2.31608331,105380.0,105370.0,0.71844458]
[1749296298629,2.34057044,105380.0,105370.0,0.71844458]
[1749296299379,2.33389213,105380.0,105370.0,0.71844458]
[1749296299585,2.32276162,105380.0,105370.0,0.71844458]
[1749296299790,2.34057006,105380.0,105370.0,0.71844458]
[1749296300006,2.34057009,105380.0,105370.0,0.71844458]
[1749296300210,2.33389185,105380.0,105370.0,0.71844458]
[1749296300525,2.31608331,105380.0,105370.0,0.71844458]
[1749296300943,2.33389154,105380.0,105370.0,0.71844458]
[1749296301154,2.33389184,105380.0,105370.0,0.71844458]
[1749296301368,2.31608331,105380.0,105370.0,0.71844458]
[1749296301563,2.33389184,105380.0,105370.0,0.71844458]
[1749296302002,2.31608331,105380.0,105370.0,0.71844458]
[1749296302208,2.33389184,105380.0,105370.0,0.71844458]
[1749296302648,2.31608331,105380.0,105370.0,0.71844458]
[1749296303495,2.33389184,105380.0,105370.0,0.71844458]
[1749296303635,2.31608331,105380.0,105370.0,0.71844458]
[1749296304072,2.33389184,105380.0,105370.0,0.71844458]
[1749296304448,2.31608331,105380.0,105370.0,0.71844458]
[1749296304824,2.31608331,105380.0,105370.0,0.67154219]
[1749296304968,2.33389162,105380.0,105370.0,0.67154219]
[1749296305179,2.33389162,105380.0,105370.0,0.69052228]
[1749296305402,1.2532459,105380.0,105370.0,0.69052228]
[1749296305600,2.34337943,105380.0,105370.0,0.68103237]
[1749296305801,2.31608304,105380.0,105370.0,0.68103237]
[1749296306369,2.31608304,105380.0,105370.0,0.69052246]
[1749296306547,2.3179912,105380.0,105370.0,0.70001246]
[1749296306815,2.31799121,105380.0,105370.0,0.69052246]
[1749296307014,2.30018304,105380.0,105370.0,0.69052246]
[1749296307356,2.31799121,105380.0,105370.0,0.69052246]
[1749296307562,2.31799112,105380.0,105370.0,0.69052246]
[1749296307763,2.30018304,105380.0,105370.0,0.69052246]
[1749296307964,2.31799095,105380.0,105370.0,0.70001246]
[1749296308386,2.32748041,105380.0,105370.0,0.70001246]
[1749296308704,2.32748041,105380.0,105370.0,0.69052246]
[1749296309141,2.32746453,105380.0,105370.0,0.69052246]
[1749296309549,2.3096725,105380.0,105370.0,0.69052246]
[1749296309758,2.32746373,105380.0,105370.0,0.69052246]
[1749296310161,2.3096725,105380.0,105370.0,0.70001246]
[1749296310375,1.23734559,105380.0,105370.0,0.70001246]
[1749296310588,2.3096725,105380.0,105370.0,0.68103237]
[1749296311012,2.32748077,105380.0,105370.0,0.69052246]
[1749296311221,2.32748054,105380.0,105370.0,0.69052246]
[1749296311425,2.3096725,105380.0,105370.0,0.69052246]
[1749296311644,2.32748071,105380.0,105370.0,0.69052246]
[1749296311834,2.3096725,105380.0,105370.0,0.69052246]
[1749296312249,2.30018331,105380.0,105370.0,0.69052246]
[1749296312629,2.31799157,105380.0,105370.0,0.69052246]
[1749296313108,2.31799159,105380.0,105370.0,0.68103237]
[1749296313309,2.30018331,105380.0,105370.0,0.68103237]
[1749296313542,2.31799159,105380.0,105370.0,0.68103237]
[1749296314122,2.30018331,105380.0,105370.0,0.68103237]
[1749296314329,2.31799159,105380.0,105370.0,0.68103237]
[1749296314541,2.30018331,105380.0,105370.0,0.68103237]
[1749296314753,2.31799153,105380.0,105370.0,0.68103237]
[1749296314954,2.30018331,105380.0,105370.0,0.68103237]
[1749296315361,2.31799153,105380.0,105370.0,0.68103237]
[1749296315768,2.30018331,105380.0,105370.0,0.68103237]
[1749296316174,2.30018331,105380.0,105370.0,0.69052246]
[1749296316376,2.31799153,105380.0,105370.0,0.69052246]
[1749296316914,2.15666959,105380.0,105370.0,0.70950237]
[1749296317119,2.3286507,105380.0,105370.0,0.70950237]
[1749296317321,2.31916178,105380.0,105370.0,0.70950237]
[1749296317492,2.33696876,105380.0,105370.0,0.70001246]
[1749296317736,2.31916178,105380.0,105370.0,0.70001246]
[1749296317925,2.33696892,105380.0,105370.0,0.70001246]
[1749296318122,2.33696892,105380.0,105370.0,0.69052246]
[1749296318123,2.30967259,105380.0,105370.0,0.69052246]
[1749296318354,2.3179908,105380.0,105370.0,0.69052246]
[1749296318873,2.30018331,105380.0,105370.0,0.69052246]
[1749296319311,2.31799091,105380.0,105370.0,0.69052246]
[1749296319554,2.30018331,105380.0,105370.0,0.69052246]
[1749296319756,2.31799093,105380.0,105370.0,0.69052246]
[1749296319954,2.30018331,105380.0,105370.0,0.69052246]
[1749296320130,2.31799088,105380.0,105370.0,0.69052246]
[1749296320344,2.31799088,105380.0,105370.0,0.68103237]
[1749296320622,2.31799083,105380.0,105370.0,0.68103237]
[1749296320828,2.29069385,105380.0,105370.0,0.66205192]
[1749296321097,2.32410144,105380.0,105370.0,0.67154219]
[1749296321497,2.32410144,105380.0,105370.0,0.68103237]
[1749296321630,2.30629385,105380.0,105370.0,0.67154228]
[1749296322240,1.77903441,105380.0,105370.0,0.68103255]
[1749296322668,1.7612268,105380.0,105370.0,0.68103255]
[1749296323307,1.77903442,105380.0,105370.0,0.68103255]
[1749296323510,1.7612268,105380.0,105370.0,0.68103255]
[1749296324280,1.77903443,105380.0,105370.0,0.67154228]
[1749296324465,1.7612268,105380.0,105370.0,0.67154228]
[1749296324673,1.77903443,105380.0,105370.0,0.67154228]
[1749296325331,1.77902967,105380.0,105370.0,0.67154228]
[1749296325565,1.23396262,105380.0,105370.0,0.67154228]
[1749296325772,1.20055975,105380.0,105370.0,0.69052264]
[1749296325981,1.21836261,105380.0,105370.0,0.69052264]
[1749296326189,2.30849671,105380.0,105370.0,0.69052264]
[1749296326403,2.30849672,105380.0,105370.0,0.69052264]
[1749296326630,2.30849672,105380.0,105370.0,0.68103255]
[1749296327235,2.30849672,105380.0,105370.0,0.69052273]
[1749296327438,2.29069385,105380.0,105370.0,0.69052273]
[1749296327633,2.29069385,105380.0,105370.0,0.68103255]
[1749296327840,2.30849672,105380.0,105370.0,0.68103255]
[1749296328811,2.29069385,105380.0,105370.0,0.68103255]
[1749296328958,2.30849672,105380.0,105370.0,0.68103255]
[1749296329162,2.32629959,105380.0,105370.0,0.68103255]
[1749296329575,2.30849672,105380.0,105370.0,0.68103255]
[1749296329788,2.32629959,105380.0,105370.0,0.68103255]
[1749296330761,2.30849672,105380.0,105370.0,0.68103255]
[1749296331123,2.32629959,105380.0,105370.0,0.68103255]
[1749296331326,2.30849672,105380.0,105370.0,0.67154228]
[1749296331645,2.32629959,105380.0,105370.0,0.69052273]
[1749296331839,2.30849672,105380.0,105370.0,0.69052273]
[1749296332250,2.32629959,105380.0,105370.0,0.69052273]
[1749296332452,2.32630045,105380.0,105370.0,0.69052273]
[1749296332637,2.30849672,105380.0,105370.0,0.70001282]
[1749296333279,2.32630045,105380.0,105370.0,0.70001282]
[1749296334195,2.30849672,105380.0,105370.0,0.70001282]
[1749296334399,2.32630045,105380.0,105370.0,0.70001282]
[1749296335154,2.32630045,105380.0,105370.0,0.69052273]
[1749296335354,2.30849672,105380.0,105370.0,0.69052273]
[1749296335600,2.30849672,105380.0,105370.0,0.68103255]
[1749296335811,2.32630044,105380.0,105370.0,0.68103255]
[1749296336006,2.32630047,105380.0,105370.0,0.68103255]
[1749296336211,2.32630047,105380.0,105370.0,0.69052273]
[1749296336420,2.32630046,105380.0,105370.0,0.69052273]
[1749296336624,2.30849672,105380.0,105370.0,0.69052273]
[1749296336857,2.32630046,105380.0,105370.0,0.68103255]
[1749296337068,2.30849672,105380.0,105370.0,0.68103255]
[1749296337274,2.32630046,105380.0,105370.0,0.68103255]
[1749296337654,2.30849672,105380.0,105370.0,0.68103255]
[1749296338066,2.32630045,105380.0,105370.0,0.68103255]
[1749296338264,2.32630044,105380.0,105370.0,0.68103255]
[1749296338466,2.32630046,105380.0,105370.0,0.68103255]
[1749296338650,2.32630432,105380.0,105370.0,0.69052273]
[1749296338826,2.30849672,105380.0,105370.0,0.69052273]
[1749296339569,2.32630432,105380.0,105370.0,0.69052273]
[1749296339999,2.30849672,105380.0,105370.0,0.69052273]
[1749296340397,2.32630432,105380.0,105370.0,0.69052273]
[1749296340600,2.32630432,105380.0,105370.0,0.70001282]
[1749296341052,1.05587026,105380.0,105370.0,0.70001282]
[1749296341185,1.59261881,105380.0,105370.0,0.70950264]
[1749296341390,2.15549289,105380.0,105370.0,0.70950264]
[1749296341592,2.14717532,105380.0,105370.0,0.70950264]
[1749296341788,1.80970444,105380.0,105370.0,0.70950282]
[1749296341996,1.7918976,105380.0,105370.0,0.70950282]
[1749296342199,1.80970442,105380.0,105370.0,0.70950282]
[1749296342428,1.80970442,105380.0,105370.0,0.70950237]
[1749296342588,1.7918976,105380.0,105370.0,0.70950237]
[1749296343022,1.80970439,105380.0,105370.0,0.70950237]
[1749296343224,1.80970474,105380.0,105370.0,0.70950237]
[1749296343433,1.7918976,105380.0,105370.0,0.70950237]
[1749296343602,1.80970474,105380.0,105370.0,0.70950237]
[1749296343793,1.7918976,105380.0,105370.0,0.70950237]
[1749296344272,1.80970485,105380.0,105370.0,0.70950237]
[1749296344481,1.7918976,105380.0,105370.0,0.70950192]
[1749296344690,1.80970485,105380.0,105370.0,0.7000121]
[1749296344864,2.3547719,105380.0,105370.0,0.7000121]
[1749296345867,2.32747555,105380.0,105370.0,0.68103219]
[1749296346052,2.34527788,105380.0,105370.0,0.68103219]
[1749296346489,2.32747555,105380.0,105370.0,0.68103219]
[1749296346730,2.34527788,105380.0,105370.0,0.68103219]
[1749296346925,2.32747555,105380.0,105370.0,0.68103219]
[1749296348172,2.34527788,105380.0,105370.0,0.68103219]
[1749296348603,1.25514379,105380.0,105370.0,0.68103219]
[1749296348784,2.32747555,105380.0,105370.0,0.69052219]
[1749296348990,2.34527788,105380.0,105370.0,0.69052219]
[1749296349196,2.32747555,105380.0,105370.0,0.69052219]
[1749296349626,2.32747555,105380.0,105370.0,0.7000121]
[1749296349846,2.34527788,105380.0,105370.0,0.7000121]
[1749296350269,2.15548855,105380.0,105370.0,0.7000121]
[1749296350457,2.15548819,105380.0,105370.0,0.70950192]
[1749296350762,2.13768586,105380.0,105370.0,0.70950192]
[1749296350996,2.16497765,105380.0,105370.0,0.70950192]
[1749296351421,2.16497765,105380.0,105370.0,0.7000121]
[1749296351624,2.16497765,105380.0,105370.0,0.69052219]
[1749296351823,2.14717532,105380.0,105370.0,0.7000121]
[1749296352058,2.16497765,105380.0,105370.0,0.7000121]
[1749296352266,2.16497693,105380.0,105370.0,0.70001174]
[1749296352468,2.16615343,105380.0,105370.0,0.70001174]
[1749296352673,2.18395576,105380.0,105370.0,0.70001174]
[1749296354204,2.16615343,105380.0,105370.0,0.70001174]
[1749296354811,2.15666397,105380.0,105370.0,0.70001174]
[1749296355141,2.17446517,105380.0,105370.0,0.70001174]
[1749296356248,1.06652987,105380.0,105370.0,0.70001174]
[1749296356453,1.0570405,105380.0,105370.0,0.70001174]
[1749296356741,2.17446517,105380.0,105370.0,0.69052192]
[1749296357167,2.17446517,105380.0,105370.0,0.68103201]
[1749296357325,2.35476567,105380.0,105370.0,0.69052255]
[1749296358096,2.33696447,105380.0,105370.0,0.69052255]
[1749296358334,2.35476755,105380.0,105370.0,0.69052255]
[1749296358547,2.33696447,105380.0,105370.0,0.69052255]
[1749296358745,2.35476751,105380.0,105370.0,0.69052255]
[1749296359340,2.33696447,105380.0,105370.0,0.69052255]
[1749296359547,2.35476755,105380.0,105370.0,0.69052255]
[1749296361174,2.16497886,105380.0,105370.0,0.69052255]
[1749296361383,2.17446832,105380.0,105370.0,0.70001246]
[1749296361792,2.1566646,105380.0,105370.0,0.70001246]
[1749296362452,2.17446832,105380.0,105370.0,0.70001246]
[1749296363075,2.38075765,105380.0,105370.0,0.70029264]
[1749296363498,2.38075768,105380.0,105370.0,0.70029264]
[1749296363699,2.36295393,105380.0,105370.0,0.70029264]
[1749296363901,2.38075768,105380.0,105370.0,0.70029264]
[1749296364109,2.36295393,105380.0,105370.0,0.70029264]
[1749296364316,2.38075768,105380.0,105370.0,0.70029264]
[1749296364957,2.38075768,105380.0,105370.0,0.70978255]
[1749296365161,2.3807575,105380.0,105370.0,0.70978255]
[1749296365365,2.3807575,105380.0,105370.0,0.70029264]
[1749296365366,2.36295393,105380.0,105370.0,0.70029264]
[1749296365568,2.3712684,105380.0,105370.0,0.70029264]
[1749296365978,2.35346483,105380.0,105370.0,0.70029264]
[1749296366180,2.3712684,105380.0,105370.0,0.70978255]
[1749296366382,2.35346483,105380.0,105370.0,0.70978255]
[1749296366595,2.3547684,105380.0,105370.0,0.70978255]
[1749296366801,1.2646343,105380.0,105370.0,0.70978255]
[1749296367001,2.33696483,105380.0,105370.0,0.70978255]
[1749296367143,2.33696483,105380.0,105370.0,0.70029264]
[1749296367564,2.3547684,105380.0,105370.0,0.70029264]
[1749296367739,2.34527912,105380.0,105370.0,0.69080264]
[1749296368402,2.32747555,105380.0,105370.0,0.69080264]
[1749296368699,2.34527919,105380.0,105370.0,0.69080264]
[1749296369003,2.32747555,105380.0,105370.0,0.69080273]
[1749296369145,2.32747555,105380.0,105370.0,0.70029282]
[1749296369614,2.34527919,105380.0,105370.0,0.70029282]
[1749296369788,2.32747555,105380.0,105370.0,0.70029282]
[1749296370421,2.34527919,105380.0,105370.0,0.70029282]
[1749296370592,2.32747555,105380.0,105370.0,0.70029282]
[1749296370793,2.34527919,105380.0,105370.0,0.70029282]
[1749296371002,2.32747555,105380.0,105370.0,0.70029282]
[1749296371210,2.33578982,105380.0,105370.0,0.68131255]
[1749296371410,2.31798618,105380.0,105370.0,0.69080273]
[1749296371790,2.33578982,105380.0,105370.0,0.69080273]
[1749296372022,2.31798618,105380.0,105370.0,0.69080273]
[1749296372226,2.33578982,105380.0,105370.0,0.69080273]
[1749296372753,2.31798618,105380.0,105370.0,0.69080273]
[1749296372954,2.33578982,105380.0,105370.0,0.68131255]
[1749296373200,2.31798618,105380.0,105370.0,0.69080264]
[1749296373488,2.31798618,105380.0,105370.0,0.68131255]
[1749296373683,2.33578982,105380.0,105370.0,0.68131255]
[1749296373888,2.31798618,105380.0,105370.0,0.68131255]
[1749296374264,2.33578982,105380.0,105370.0,0.68131255]
[1749296374414,2.32630036,105380.0,105370.0,0.47252458]
[1749296374618,2.32419672,105380.0,105370.0,0.09400458]
[1749296374844,2.32419672,105380.0,105370.0,0.47236458]
[1749296375059,2.34200088,105380.0,105370.0,0.09400458]
[1749296375256,2.32630088,105380.0,105370.0,0.47236458]
[1749296375459,2.32630104,105380.0,105370.0,0.47236458]
[1749296375666,2.32630104,105380.0,105370.0,0.67166228]
[1749296375870,2.32630312,105380.0,105370.0,0.67166228]
[1749296376093,2.32630312,105380.0,105370.0,0.47236458]
[1749296376305,2.30849672,105380.0,105370.0,0.47236458]
[1749296376520,2.34200312,105380.0,105370.0,0.47236458]
[1749296376952,2.32630312,105380.0,105370.0,0.47236458]
[1749296377806,2.30849672,105380.0,105370.0,0.47236458]
[1749296378013,2.32630312,105380.0,105370.0,0.47236458]
[1749296378542,2.34150312,105380.0,105370.0,0.47236458]
[1749296378701,2.32369672,105380.0,105370.0,0.18272458]
[1749296378901,2.32369672,105380.0,105370.0,0.47236458]
[1749296379130,2.32369672,105380.0,105370.0,0.09400458]
[1749296379337,2.32369672,105380.0,105360.0,0.2462]
[1749296379338,0.23089752,105370.0,105360.0,0.2462]
[1749296379535,1.33883912,105370.0,105360.0,0.72083948]
[1749296379687,1.32103162,105370.0,105360.0,0.72083948]
[1749296379892,1.3388396,105370.0,105360.0,0.72083948]
[1749296380092,1.33884028,105370.0,105360.0,0.72083948]
[1749296380292,1.34551854,105370.0,105360.0,0.72083948]
[1749296380709,1.33884043,105370.0,105360.0,0.72083948]
[1749296380910,1.32103162,105370.0,105360.0,0.72083948]
[1749296381107,1.34551873,105370.0,105360.0,0.72083948]
[1749296381575,1.34303873,105370.0,105360.0,0.72083948]
[1749296381955,1.33636043,105370.0,105360.0,0.72083948]
[1749296382156,1.33632499,105370.0,105360.0,0.72083948]
[1749296382964,1.31855162,105370.0,105360.0,0.72083948]
[1749296384532,1.33632499,105370.0,105360.0,0.72083948]
[1749296384693,1.31855162,105370.0,105360.0,0.72083948]
[1749296384892,1.33632499,105370.0,105360.0,0.72083948]
[1749296385207,1.31855162,105370.0,105360.0,0.72083948]
[1749296385405,1.33632499,105370.0,105360.0,0.72083948]
[1749296385605,1.31855162,105370.0,105360.0,0.72083948]
[1749296386145,1.33632499,105370.0,105360.0,0.72083948]
[1749296386390,1.31855162,105370.0,105360.0,0.72083948]
[1749296386574,1.31855162,105370.0,105360.0,0.62444]
[1749296386815,1.33632499,105370.0,105360.0,0.62444]
[1749296387510,1.31855162,105370.0,105360.0,0.62444]
[1749296387730,1.3363217,105370.0,105360.0,0.2462]
[1749296387952,1.3363217,105370.0,105360.0,0.62448]
[1749296388674,1.31855162,105370.0,105360.0,0.62448]
[1749296388889,1.3363217,105370.0,105360.0,0.62448]
[1749296389117,1.31855162,105370.0,105360.0,0.62448]
[1749296389633,1.3363217,105370.0,105360.0,0.62448]
[1749296390143,1.33632168,105370.0,105360.0,0.62448]
[1749296390557,1.31855162,105370.0,105360.0,0.62448]
[1749296391081,1.33631724,105370.0,105360.0,0.62448]
[1749296391440,1.31855162,105370.0,105360.0,0.62448]
[1749296391661,1.33631724,105370.0,105360.0,0.62448]
[1749296391874,0.79125019,105370.0,105360.0,0.62448]
[1749296392511,0.77348457,105370.0,105360.0,0.62448]
[1749296392719,0.79125019,105370.0,105360.0,0.62448]
[1749296392928,0.77348457,105370.0,105360.0,0.62448]
[1749296393348,0.79124361,105370.0,105360.0,0.62448]
[1749296393552,0.77348457,105370.0,105360.0,0.62448]
[1749296394321,0.79124361,105370.0,105360.0,0.62448]
[1749296394915,0.79124356,105370.0,105360.0,0.62448]
[1749296395338,0.77348457,105370.0,105360.0,0.62448]
[1749296395535,0.79124356,105370.0,105360.0,0.62448]
[1749296395820,0.77348457,105370.0,105360.0,0.62448]
[1749296396044,0.79124356,105370.0,105360.0,0.62448]
[1749296396455,0.77348457,105370.0,105360.0,0.62448]
[1749296396662,0.79124356,105370.0,105360.0,0.62448]
[1749296397493,0.77348457,105370.0,105360.0,0.62448]
[1749296397731,0.79124356,105370.0,105360.0,0.62448]
[1749296398159,0.79792254,105370.0,105360.0,0.62448]
[1749296398765,0.77348457,105370.0,105360.0,0.62448]
[1749296399180,0.78016355,105370.0,105360.0,0.62448]
[1749296399582,0.77348457,105370.0,105360.0,0.62448]
[1749296399799,0.79129518,105370.0,105360.0,0.62448]
[1749296399930,0.78016355,105370.0,105360.0,0.62448]
[1749296400144,0.79797416,105370.0,105360.0,0.62448]
[1749296400341,0.79129518,105370.0,105360.0,0.62448]
[1749296400522,0.78016355,105370.0,105360.0,0.62448]
[1749296400934,0.79797416,105370.0,105360.0,0.37828]
[1749296401345,0.77348457,105370.0,105360.0,0.37828]
[1749296401572,0.79129518,105370.0,105360.0,0.37828]
[1749296401811,0.78016355,105370.0,105360.0,0.37828]
[1749296402007,0.79797416,105370.0,105360.0,0.37828]
[1749296402872,0.78016355,105370.0,105360.0,0.37828]
[1749296403095,0.78016348,105370.0,105360.0,0.37828]
[1749296403293,0.79797392,105370.0,105360.0,0.37828]
[1749296403496,0.77348457,105370.0,105360.0,0.37828]
[1749296403751,0.79797386,105370.0,105360.0,0.37828]
[1749296403952,0.80746395,105370.0,105360.0,0.57759662]
[1749296404175,0.79797386,105370.0,105360.0,0.37828]
[1749296404678,0.78016254,105370.0,105360.0,0.37828]
[1749296405059,0.79129249,105370.0,105360.0,0.37828]
[1749296405257,0.77348457,105370.0,105360.0,0.37828]
[1749296405458,0.79129249,105370.0,105360.0,0.37828]
[1749296405663,0.79797046,105370.0,105360.0,0.37828]
[1749296406343,0.79797081,105370.0,105360.0,0.37828]
[1749296406548,0.77348457,105370.0,105360.0,0.37828]
[1749296406747,0.78016267,105370.0,105360.0,0.37828]
[1749296406953,0.77348457,105370.0,105360.0,0.37828]
[1749296407156,0.78016267,105370.0,105360.0,0.37828]
[1749296407374,0.79129284,105370.0,105360.0,0.37828]
[1749296407599,0.78016267,105370.0,105360.0,0.37828]
[1749296407798,0.79797094,105370.0,105360.0,0.37828]
[1749296408582,0.79129284,105370.0,105360.0,0.37828]
[1749296408960,0.78016267,105370.0,105360.0,0.37828]
[1749296409159,0.78016263,105370.0,105360.0,0.37828]
[1749296409362,0.79797094,105370.0,105360.0,0.37828]
[1749296409537,0.79129284,105370.0,105360.0,0.37828]
[1749296409749,0.79797095,105370.0,105360.0,0.37828]
[1749296410085,0.18982536,105360.0,105350.0,0.45506505]
[1749296410255,0.78668258,105360.0,105350.0,0.93919615]
[1749296410457,0.78668261,105360.0,105350.0,0.93919615]
[1749296410655,0.79617414,105360.0,105350.0,0.92970453]
[1749296410840,0.79617414,105360.0,105350.0,0.93919615]
[1749296411043,0.77836583,105360.0,105350.0,0.93919615]
[1749296411462,0.79617414,105360.0,105350.0,0.93919615]
[1749296411663,0.77836583,105360.0,105350.0,0.93919615]
[1749296411867,0.7961739,105360.0,105350.0,0.93919615]
[1749296412068,0.77836583,105360.0,105350.0,0.93919615]
[1749296412272,0.7961739,105360.0,105350.0,0.93919615]
[1749296412472,0.77836583,105360.0,105350.0,0.93919615]
[1749296412685,0.7961739,105360.0,105350.0,0.92970453]
[1749296413032,0.7961739,105360.0,105350.0,0.93919633]
[1749296413436,0.77836583,105360.0,105350.0,0.93919633]
[1749296413646,0.77836583,105360.0,105350.0,0.92970471]
[1749296414078,0.76887484,105360.0,105350.0,0.92970507]
[1749296414304,0.78668291,105360.0,105350.0,0.93919705]
[1749296414608,0.78668291,105360.0,105350.0,0.94868876]
[1749296414741,1.26717484,105360.0,105350.0,0.94868876]
[1749296415147,1.28498291,105360.0,105350.0,0.94868876]
[1749296415366,1.28498291,105360.0,105350.0,0.93919705]
[1749296415570,1.27549174,105360.0,105350.0,0.72087948]
[1749296415773,1.25768367,105360.0,105350.0,0.73037164]
[1749296416612,1.27549174,105360.0,105350.0,0.73037164]
[1749296417037,1.25768367,105360.0,105350.0,0.92021501]
[1749296417242,1.27549174,105360.0,105350.0,0.92970708]
[1749296417872,1.25768367,105360.0,105350.0,0.92970708]
[1749296418080,1.25768367,105360.0,105350.0,0.93919906]
[1749296418886,1.26600048,105360.0,105350.0,0.93919906]
[1749296419547,1.24819241,105360.0,105350.0,0.93919906]
[1749296419993,1.26600048,105360.0,105350.0,0.92021501]
[1749296420226,1.81106753,105360.0,105350.0,0.92021501]
[1749296420794,1.81106753,105360.0,105350.0,0.73037164]
[1749296421660,1.79325946,105360.0,105350.0,0.73986371]
[1749296421865,1.81106753,105360.0,105350.0,0.72087948]
[1749296422368,1.81106753,105360.0,105350.0,0.73037164]
[1749296422614,1.81106769,105360.0,105350.0,0.73037164]
[1749296422824,1.79325946,105360.0,105350.0,0.73037164]
[1749296423030,1.26600064,105360.0,105350.0,0.73037164]
[1749296423436,1.24819241,105360.0,105350.0,0.73037164]
[1749296423596,1.26600064,105360.0,105350.0,0.73037164]
[1749296424589,1.26600064,105360.0,105350.0,0.72087948]
[1749296424790,1.26600079,105360.0,105350.0,0.72087948]
[1749296424994,1.26600059,105360.0,105350.0,0.72087948]
[1749296425425,1.24819241,105360.0,105350.0,0.72087948]